bitfinex-derivatives/quotes_BNBF0:USTF0_20250709
["timestamp","ask_amount","ask_price","bid_price","bid_amount"]
[1752034202149,1.69866371,661.84,661.32,1.863]
[1752034202348,1.69866371,661.83,661.32,1.863]
[1752034202648,1.69866371,661.85,661.32,1.863]
[1752034203345,1.69866371,661.84,661.32,1.863]
[1752034203649,1.69866371,661.81,661.32,1.863]
[1752034203844,1.69866371,661.78,661.32,1.863]
[1752034205353,1.69866371,661.77,661.32,1.863]
[1752034208454,1.69866371,661.76,661.32,1.863]
[1752034210351,1.69866371,661.75,661.32,1.863]
[1752034212357,1.69866371,661.74,661.32,1.863]
[1752034212557,1.69866371,661.72,661.32,1.863]
[1752034214262,1.69866371,661.71,661.32,1.863]
[1752034214862,1.69866371,661.72,661.32,1.863]
[1752034215157,1.30264002,661.81,661.32,1.863]
[1752034215158,1.69866371,661.71,661.32,1.863]
[1752034215661,1.69866371,661.72,661.32,1.863]
[1752034219060,1.69866371,661.74,661.33,1.69896169]
[1752034219263,1.69866371,661.74,661.32,3.56196169]
[1752034221064,1.69866371,661.77,661.32,1.863]
[1752034222060,1.69866371,661.78,661.32,1.863]
[1752034224868,1.69866371,661.77,661.32,1.863]
[1752034225768,1.74462333,661.9,661.32,1.863]
[1752034225769,1.69866371,661.78,661.32,1.863]
[1752034228071,1.69866371,661.77,661.32,1.863]
[1752034228365,1.69866371,661.78,661.32,1.863]
[1752034228570,1.69866371,661.77,661.32,1.863]
[1752034230172,1.69866371,661.77,661.28,1.69896169]
[1752034231072,1.69866371,661.75,661.31,1.69896169]
[1752034231567,1.69866371,661.74,661.32,1.69896169]
[1752034233068,1.69866371,661.75,661.31,1.69896169]
[1752034235476,1.69866371,661.74,661.32,1.69896169]
[1752034235868,1.69866371,661.75,661.32,1.69896169]
[1752034236570,1.69866371,661.74,661.32,1.69896169]
[1752034242885,1.69866371,661.74,661.33,1.69896169]
[1752034243083,1.69866371,661.73,661.34,1.69896169]
[1752034250192,1.69866371,661.72,661.34,1.69896169]
[1752034253996,1.69866371,661.72,661.35,1.69896169]
[1752034258293,1.69866371,661.71,661.35,1.69896169]
[1752034261498,1.69866371,661.71,661.36,1.69896169]
[1752034264300,1.69866371,661.7,661.36,1.69896169]
[1752034265496,1.69866371,661.7,661.35,1.69896169]
[1752034265697,1.69866371,661.71,661.35,1.69896169]
[1752034271502,1.69866371,661.7,661.35,1.69896169]
[1752034271705,1.69866371,661.7,661.36,1.69896169]
[1752034275406,1.69866371,661.69,661.37,1.69896169]
[1752034287015,1.69866371,661.7,661.36,1.69896169]
[1752034289415,1.69866371,661.7,661.37,1.997]
[1752034291117,1.30516875,661.8,661.37,1.997]
[1752034291317,2.26553295,661.81,661.37,1.997]
[1752034291318,1.70029019,661.7,661.37,1.997]
[1752034295520,1.70029019,661.69,661.37,3.69632424]
[1752034300418,1.70029019,661.71,661.37,1.997]
[1752034302124,1.70029019,661.7,661.37,1.997]
[1752034310328,1.70029019,661.69,661.38,1.69932424]
[1752034316533,1.30645918,661.78,661.37,1.997]
[1752034316738,1.70032596,661.69,661.38,1.69945131]
[1752034323043,1.70032596,661.69,661.37,1.69945131]
[1752034323342,1.70032596,661.69,661.39,1.564]
[1752034339451,1.70035962,661.69,661.39,1.564]
[1752034344360,1.70035962,661.7,661.39,1.564]
[1752034348863,1.70035962,661.71,661.39,1.564]
[1752034356668,1.70035962,661.7,661.39,1.564]
[1752034367275,1.70035962,661.7,661.38,1.69957122]
[1752034370478,1.70035962,661.7,661.39,1.4]
[1752034373680,1.70035962,661.74,661.39,1.4]
[1752034374077,1.70035962,661.75,661.39,1.4]
[1752034374275,1.70035962,661.78,661.39,1.4]
[1752034374476,1.70035962,661.79,661.39,1.4]
[1752034374878,1.70035962,661.78,661.39,1.4]
[1752034375381,1.70035962,661.79,661.39,1.4]
[1752034376788,1.74389171,661.93,661.39,1.4]
[1752034376984,1.69948766,661.79,661.39,1.4]
[1752034381393,1.69948766,661.8,661.39,1.4]
[1752034383694,1.69948766,661.75,661.4,1.69890611]
[1752034385195,1.69948766,661.76,661.4,1.69890611]
[1752034389398,1.30522919,661.86,661.39,1.4]
[1752034389602,1.69889367,661.76,661.4,1.69831103]
[1752034394206,1.69889367,661.76,661.39,3.09831103]
[1752034395707,1.69889367,661.78,661.39,1.4]
[1752034398605,1.69889367,661.78,661.36,1.69831103]
[1752034401210,1.69889367,661.78,661.37,1.842]
[1752034402409,1.69889367,661.79,661.37,1.842]
[1752034405609,1.69889367,661.77,661.38,1.69831103]
[1752034407110,1.69889367,661.77,661.37,3.54031103]
[1752034407309,1.69889367,661.77,661.38,1.69831103]
[1752034410113,1.69889367,661.76,661.38,1.69831103]
[1752034410515,1.69889367,661.76,661.39,1.69831103]
[1752034411115,1.69889367,661.77,661.37,3.54031103]
[1752034412418,1.30467865,661.88,661.39,1.69831103]
[1752034412419,1.69889367,661.76,661.39,1.69831103]
[1752034415823,1.30467865,661.86,661.37,1.842]
[1752034416120,1.69895756,661.76,661.39,1.69878682]
[1752034420626,1.30467865,661.87,661.37,1.842]
[1752034420923,1.69909107,661.75,661.4,1.6989228]
[1752034426529,1.30523987,661.84,661.37,1.842]
[1752034426729,1.69935158,661.75,661.4,1.69919186]
[1752034427326,1.69935881,661.75,661.4,1.69919909]
[1752034427529,1.69935881,661.75,661.41,1.69919909]
[1752034428330,1.69935881,661.74,661.41,1.69919909]
[1752034432438,1.69935881,661.73,661.41,1.69919909]
[1752034433438,1.69935881,661.73,661.42,1.69919909]
[1752034434336,1.69935881,661.73,661.41,1.69919909]
[1752034434834,1.69935881,661.74,661.42,1.69919909]
[1752034441546,1.69935881,661.74,661.41,1.69919909]
[1752034442848,1.69935881,661.74,661.42,1.69919909]
[1752034443945,1.69935881,661.73,661.42,1.69919909]
[1752034444151,1.69935881,661.73,661.41,1.69919909]
[1752034444449,1.69935881,661.73,661.42,1.69919909]
[1752034454651,1.69935881,661.75,661.4,1.69919909]
[1752034458152,1.69935881,661.74,661.4,1.69919909]
[1752034461358,1.69935881,661.74,661.41,1.805]
[1752034464656,1.69935881,661.73,661.42,1.69919909]
[1752034466963,1.69935881,661.85,661.41,1.805]
[1752034467258,1.69935881,661.83,661.41,1.805]
[1752034469065,1.69935881,661.81,661.41,1.805]
[1752034470363,2.26553295,661.99,661.41,1.805]
[1752034470563,0.26298885,662.07,661.41,1.805]
[1752034482976,1.6956274,661.6,661.41,1.805]
[1752034483275,2.2608366,661.79,661.41,1.805]
[1752034483572,2.2608366,661.8,661.41,1.805]
[1752034484275,2.2608366,661.81,661.41,1.805]
[1752034485478,2.2608366,661.82,661.41,1.805]
[1752034486379,2.2608366,661.77,661.41,1.805]
[1752034487378,2.2608366,661.75,661.41,1.805]
[1752034488478,2.2608366,661.76,661.41,1.805]
[1752034489577,2.2608366,661.77,661.41,1.805]
[1752034490474,2.2608366,661.74,661.41,1.805]
[1752034491273,0.43672167,661.74,661.41,1.805]
[1752034491576,2.2608366,661.75,661.41,1.805]
[1752034492379,2.2608366,661.76,661.41,1.805]
[1752034493381,2.2608366,661.77,661.41,1.805]
[1752034494478,2.2608366,661.78,661.41,1.805]
[1752034495082,2.69697836,661.78,661.41,1.805]
[1752034495381,2.2608366,661.78,661.41,1.805]
[1752034497485,2.2608366,661.79,661.41,1.805]
[1752034500284,2.69697836,661.79,661.41,1.805]
[1752034500484,2.2608366,661.79,661.41,1.805]
[1752034501685,2.2608366,661.8,661.41,1.805]
[1752034504386,2.2608366,661.81,661.41,1.805]
[1752034505289,2.2608366,661.82,661.41,1.805]
[1752034508096,1.74989524,661.92,661.41,1.805]
[1752034508592,1.74811271,661.99,661.41,1.805]
[1752034508796,1.31241512,661.99,661.41,1.805]
[1752034510101,2.2608366,662.0,661.41,1.805]
[1752034510505,1.31241512,661.99,661.41,1.805]
[1752034510902,2.2608366,662.0,661.41,1.805]
[1752034512303,3.57331079,662.0,661.41,1.805]
[1752034512508,2.2608366,662.0,661.19,0.26302662]
[1752034513008,1.68921809,661.76,661.19,0.26302662]
[1752034514007,1.74817178,661.95,661.19,0.26302662]
[1752034514210,1.68927467,661.76,661.19,0.26302662]
[1752034515315,1.68927467,661.76,661.2,1.648]
[1752034517510,1.68927467,661.75,661.2,1.648]
[1752034518013,1.74865284,661.94,661.2,1.648]
[1752034518014,1.68927467,661.69,661.2,1.648]
[1752034520314,1.68927467,661.68,661.2,1.648]
[1752034522418,1.68927467,661.67,661.2,1.648]
[1752034524413,1.68927467,661.66,661.2,1.648]
[1752034524717,1.68927467,661.68,661.2,1.648]
[1752034525513,1.68927467,661.67,661.2,1.648]
[1752034526217,1.68927467,661.66,661.2,1.648]
[1752034527314,1.68927467,661.65,661.2,1.648]
[1752034528618,1.68927467,661.64,661.2,1.648]
[1752034529321,1.68927467,661.63,661.2,1.648]
[1752034530419,1.68927467,661.62,661.2,1.648]
[1752034531420,1.68927467,661.61,661.2,1.648]
[1752034532420,1.68927467,661.6,661.2,1.648]
[1752034533421,1.68927467,661.59,661.2,1.648]
[1752034534518,1.68927467,661.56,661.2,1.648]
[1752034534819,1.69544947,661.56,661.2,1.648]
[1752034535524,1.69544947,661.55,661.2,1.648]
[1752034536422,1.69544947,661.54,661.2,1.648]
[1752034537418,1.69544947,661.53,661.2,1.648]
[1752034537822,1.69544947,661.54,661.2,1.648]
[1752034538319,1.69544947,661.53,661.2,1.648]
[1752034538524,1.69544947,661.5,661.2,1.648]
[1752034539323,1.69544947,661.51,661.2,1.648]
[1752034539518,1.69544947,661.5,661.2,1.648]
[1752034541424,1.69544947,661.51,661.2,1.648]
[1752034541624,1.69544947,661.52,661.2,1.648]
[1752034542424,1.69544947,661.5,661.2,1.648]
[1752034542624,1.69544947,661.57,661.2,1.648]
[1752034542826,1.69544947,661.56,661.2,1.648]
[1752034543525,1.69544947,661.57,661.2,1.648]
[1752034544423,1.69544947,661.58,661.2,1.648]
[1752034546325,1.69544947,661.59,661.2,1.648]
[1752034547326,1.69544947,661.58,661.2,1.648]
[1752034547623,1.69544947,661.59,661.2,1.648]
[1752034548626,1.69544947,661.6,661.2,1.648]
[1752034551228,1.69544947,661.63,661.2,1.648]
[1752034551522,1.69544947,661.69,661.2,1.648]
[1752034552325,1.69544947,661.7,661.2,1.648]
[1752034553330,1.69544947,661.71,661.2,1.648]
[1752034555428,1.69544947,661.72,661.2,1.648]
[1752034557331,1.69623785,661.73,661.2,1.648]
[1752034558331,1.69623785,661.73,661.19,0.26302662]
[1752034560938,1.69623785,661.71,661.19,0.26302662]
[1752034561138,1.69623785,661.69,661.2,1.69671335]
[1752034561838,1.69623785,661.69,661.21,1.52]
[1752034562239,1.69623785,661.7,661.21,1.52]
[1752034563439,1.69623785,661.71,661.21,1.52]
[1752034565942,1.69623785,661.7,661.21,1.52]
[1752034566443,1.74253528,661.81,661.21,1.52]
[1752034566444,1.69623785,661.71,661.21,1.52]
[1752034569445,1.69623785,661.72,661.21,1.52]
[1752034570243,1.69623785,661.71,661.21,1.52]
[1752034571349,1.69623785,661.72,661.21,1.52]
[1752034571648,1.74253528,661.82,661.21,1.52]
[1752034571649,1.69623785,661.71,661.21,1.52]
[1752034572150,1.69623785,661.73,661.21,1.52]
[1752034572551,1.69623785,661.75,661.21,1.52]
[1752034576454,1.74253528,661.88,661.21,1.52]
[1752034576455,1.69623785,661.76,661.21,1.52]
[1752034577152,1.74253528,661.9,661.21,1.52]
[1752034577351,2.2608366,661.91,661.21,1.52]
[1752034577352,1.69489664,661.76,661.21,1.52]
[1752034582059,1.69489664,661.75,661.21,1.52]
[1752034582358,1.69489664,661.74,661.21,1.52]
[1752034583361,1.69489664,661.73,661.21,1.52]
[1752034583564,1.69489664,661.74,661.21,1.52]
[1752034586359,1.69489664,661.72,661.21,1.52]
[1752034588463,1.69489664,661.71,661.21,1.52]
[1752034590571,1.69489664,661.7,661.21,1.52]
[1752034593369,1.69489664,661.69,661.21,1.52]
[1752034594371,1.69489664,661.69,661.21,3.21436823]
[1752034595366,1.69489664,661.68,661.21,3.21436823]
[1752034595769,1.69489664,661.69,661.21,3.21436823]
[1752034596263,1.69489664,661.68,661.21,3.21436823]
[1752034597365,1.69489664,661.68,661.22,1.69436823]
[1752034598468,1.69489664,661.67,661.22,1.69436823]
[1752034599470,1.69489664,661.67,661.23,1.69436823]
[1752034600666,1.69489664,661.66,661.23,1.69436823]
[1752034601370,1.69489664,661.65,661.24,1.69436823]
[1752034602370,1.69489664,661.65,661.25,1.69436823]
[1752034603469,1.69489664,661.64,661.25,1.69436823]
[1752034605272,1.69489664,661.64,661.26,1.69436823]
[1752034606269,1.69489664,661.63,661.26,1.69436823]
[1752034606773,1.30396952,661.73,661.21,1.52]
[1752034607075,1.69892888,661.63,661.26,1.6984335]
[1752034608276,1.69892888,661.63,661.27,1.6984335]
[1752034609377,1.69892888,661.62,661.27,1.6984335]
[1752034610377,1.69892888,661.61,661.28,1.6984335]
[1752034611377,1.69892888,661.6,661.29,1.6984335]
[1752034616377,1.69892888,661.6,661.3,1.651]
[1752034616582,1.69892888,661.61,661.3,1.651]
[1752034620979,1.69892888,661.64,661.3,1.651]
[1752034621587,1.69892888,661.66,661.3,1.651]
[1752034626698,2.2608366,661.81,661.3,1.651]
[1752034626889,1.7003768,661.66,661.3,1.651]
[1752034628589,1.7003768,661.69,661.3,1.651]
[1752034629093,1.7003768,661.77,661.34,1.6997955]
[1752034629494,1.7003768,661.79,661.32,1.6997955]
[1752034630694,1.30424587,661.93,661.3,1.651]
[1752034630894,1.74168353,662.07,661.3,1.651]
[1752034631095,1.30424587,662.13,661.3,1.651]
[1752034631392,1.30424587,662.12,661.3,1.651]
[1752034631593,1.30424587,662.11,661.3,1.651]
[1752034631794,1.69829574,661.77,661.37,1.69714585]
[1752034632390,1.69829574,661.77,661.36,1.69714585]
[1752034632889,1.69829574,661.77,661.37,1.69714585]
[1752034633391,1.69829574,661.77,661.36,1.69714585]
[1752034634392,1.69829574,661.78,661.36,1.69714585]
[1752034635595,1.69829574,661.78,661.35,1.69714585]
[1752034637493,1.69829574,661.79,661.35,1.69714585]
[1752034639393,1.69829574,661.79,661.34,1.69714585]
[1752034640996,1.69829574,661.79,661.33,1.69714585]
[1752034645509,1.69829574,661.8,661.33,1.69714585]
[1752034646514,1.69829574,661.8,661.32,1.69714585]
[1752034650520,1.69829574,661.82,661.3,1.69714585]
[1752034651817,1.69829574,661.82,661.29,1.69714585]
[1752034652720,1.69829574,661.82,661.3,1.926]
[1752034657128,1.69829574,661.84,661.3,1.926]
[1752034657724,1.30240401,661.96,661.3,1.926]
[1752034657725,1.69829574,661.86,661.3,1.926]
[1752034660326,1.69829574,661.85,661.3,1.926]
[1752034665329,1.73896071,662.0,661.3,1.926]
[1752034665330,1.69829574,661.87,661.3,1.926]
[1752034667427,1.69829574,661.86,661.3,1.926]
[1752034669332,1.69829574,661.85,661.3,1.926]
[1752034670334,1.69829574,661.86,661.3,1.926]
[1752034670630,1.69829574,661.85,661.3,1.926]
[1752034674533,1.69829574,661.84,661.3,1.926]
[1752034675134,1.69829574,661.8,661.32,1.69714585]
[1752034675538,1.69829574,661.82,661.3,1.926]
[1752034678342,1.69829574,661.81,661.3,1.926]
[1752034679343,1.74070314,661.92,661.3,1.926]
[1752034679542,1.69760351,661.75,661.3,1.926]
[1752034681940,1.69760351,661.74,661.3,1.926]
[1752034685443,1.69760351,661.71,661.3,1.926]
[1752034686143,1.69760351,661.7,661.3,3.62280203]
[1752034687447,1.69760351,661.69,661.31,1.69680203]
[1752034693248,1.69760351,661.69,661.3,3.62280203]
[1752034694152,1.69760351,661.7,661.3,3.62280203]
[1752034694950,1.69760351,661.7,661.3,1.926]
[1752034695251,1.69760351,661.71,661.3,1.926]
[1752034695952,1.69760351,661.7,661.3,1.926]
[1752034696253,1.69760351,661.71,661.3,1.926]
[1752034697658,1.69760351,661.71,661.29,1.69680203]
[1752034698755,1.69760351,661.7,661.29,1.69680203]
[1752034699954,1.69760351,661.7,661.3,1.863]
[1752034703663,1.69760351,661.71,661.3,1.863]
[1752034704261,1.69760351,661.72,661.3,1.863]
[1752034704865,1.69760351,661.71,661.3,1.863]
[1752034714278,1.69760351,661.7,661.3,3.55980203]
[1752034718477,1.69760351,661.71,661.3,1.863]
[1752034720075,1.69760351,661.72,661.3,1.863]
[1752034721379,1.69760351,661.73,661.3,1.863]
[1752034722578,1.69760351,661.72,661.3,1.863]
[1752034723282,1.69760351,661.73,661.3,1.863]
[1752034728482,1.69760351,661.72,661.3,1.863]
[1752034729990,1.69760351,661.71,661.3,1.863]
[1752034730285,1.69760351,661.72,661.3,1.863]
[1752034730490,1.69760351,661.71,661.3,1.863]
[1752034731392,1.69760351,661.7,661.3,1.863]
[1752034732993,1.69760351,661.69,661.31,1.69680203]
[1752034733593,1.69760351,661.68,661.31,1.69680203]
[1752034736506,1.69760351,661.67,661.31,1.69680203]
[1752034737101,1.69760351,661.67,661.32,1.69680203]
[1752034737499,1.69760351,661.66,661.32,1.69680203]
[1752034738100,1.69760351,661.67,661.32,1.69680203]
[1752034738402,1.69760351,661.66,661.33,1.69680203]
[1752034738898,1.69760351,661.65,661.33,1.69680203]
[1752034739302,1.69760351,661.65,661.34,1.69680203]
[1752034752409,1.69760351,661.7,661.3,1.863]
[1752034752605,1.69760351,661.72,661.3,1.863]
[1752034752909,1.69760351,661.71,661.3,1.863]
[1752034753509,1.69760351,661.72,661.3,1.863]
[1752034755109,1.69760351,661.72,661.28,0.26298587]
[1752034756414,1.74214047,661.88,661.28,0.26298587]
[1752034756710,1.69976793,661.72,661.28,0.26298587]
[1752034757519,1.69976793,661.72,661.29,1.969]
[1752034760516,1.69976793,661.71,661.29,1.969]
[1752034761216,1.69976793,661.7,661.29,1.969]
[1752034761611,1.69976793,661.69,661.29,1.969]
[1752034762416,1.69976793,661.66,661.29,3.6691531]
[1752034763412,1.69976793,661.65,661.31,1.7001531]
[1752034763616,1.69976793,661.57,661.29,1.969]
[1752034764516,1.69976793,661.58,661.29,1.969]
[1752034766413,1.69976793,661.59,661.29,1.969]
[1752034768317,1.69976793,661.6,661.29,1.969]
[1752034771421,1.69976793,661.61,661.29,1.969]
[1752034775729,1.69976793,661.63,661.29,1.969]
[1752034776425,1.69976793,661.62,661.29,1.969]
[1752034779131,1.69976793,661.63,661.29,1.969]
[1752034781329,1.69976793,661.64,661.29,1.969]
[1752034782234,1.69976793,661.63,661.29,1.969]
[1752034784331,1.69976793,661.64,661.29,1.969]
[1752034785434,1.69976793,661.63,661.29,1.969]
[1752034785632,1.69976793,661.62,661.29,1.969]
[1752034786436,1.69976793,661.63,661.29,1.969]
[1752034786635,1.69976793,661.63,661.28,0.26298587]
[1752034786852,1.69976793,661.62,661.28,0.26298587]
[1752034788335,1.69976793,661.63,661.28,0.26298587]
[1752034790241,1.69976793,661.63,661.29,1.351]
[1752034790439,1.69976793,661.62,661.29,1.351]
[1752034794844,1.69976793,661.63,661.29,1.351]
[1752034798241,1.69976793,661.62,661.29,1.351]
[1752034800744,1.69976793,661.67,661.29,1.351]
[1752034802144,1.69976793,661.67,661.32,0.26301171]
[1752034802641,1.74069456,661.81,661.32,0.26301171]
[1752034802642,1.69976793,661.72,661.32,0.26301171]
[1752034803142,1.69976793,661.71,661.32,0.26301171]
[1752034809250,1.69976793,661.7,661.32,0.26301171]
[1752034809646,1.69976793,661.76,661.32,0.26301171]
[1752034810250,1.30522233,661.94,661.32,0.26301171]
[1752034810450,1.6976648,661.85,661.32,0.26301171]
[1752034811248,1.74265844,662.03,661.32,0.26301171]
[1752034811249,1.6976648,661.86,661.32,0.26301171]
[1752034812650,1.6976648,661.88,661.32,0.26301171]
[1752034814252,1.6976648,661.89,661.32,0.26301171]
[1752034815448,1.6976648,661.9,661.32,0.26301171]
[1752034815647,1.6976648,661.93,661.32,0.26301171]
[1752034815951,1.74025019,662.12,661.32,0.26301171]
[1752034816154,1.69630371,661.93,661.32,0.26301171]
[1752034816351,1.69630371,661.92,661.32,0.26301171]
[1752034816551,4.00464451,662.12,661.32,0.26301171]
[1752034816552,1.69630371,661.93,661.32,0.26301171]
[1752034817248,1.69630371,661.94,661.32,0.26301171]
[1752034817653,1.69630371,661.93,661.32,0.26301171]
[1752034819151,1.69630371,661.94,661.32,0.26301171]
[1752034819655,1.74025019,662.12,661.32,0.26301171]
[1752034819656,1.69630371,661.93,661.32,0.26301171]
[1752034821859,1.73771571,662.1,661.32,0.26301171]
[1752034822155,1.69476031,661.97,661.32,0.26301171]
[1752034823159,1.69476031,661.96,661.32,0.26301171]
[1752034823959,1.69476031,661.95,661.32,0.26301171]
[1752034825256,1.69476031,661.96,661.32,0.26301171]
[1752034828261,1.69476031,661.97,661.32,0.26301171]
[1752034828463,1.69476031,662.09,661.32,1.95664718]
[1752034829262,1.69476031,662.1,661.32,0.26301171]
[1752034830467,1.69476031,662.11,661.32,0.26301171]
[1752034831166,1.69476031,662.12,661.32,0.26301171]
[1752034831766,1.69476031,662.07,661.37,1.69363547]
[1752034832267,1.69476031,662.08,661.37,1.69363547]
[1752034833266,1.69476031,662.08,661.36,1.69363547]
[1752034833762,1.69476031,662.07,661.38,1.69363547]
[1752034834266,1.69476031,662.08,661.38,1.69363547]
[1752034835364,1.69476031,662.08,661.37,1.69363547]
[1752034835668,1.29924227,662.19,661.37,1.69363547]
[1752034835669,1.69476031,662.09,661.37,1.69363547]
[1752034836165,1.69476031,662.08,661.38,1.69363547]
[1752034836868,1.69476031,662.08,661.32,0.26301171]
[1752034836869,1.69476031,662.1,661.35,1.69363547]
[1752034837265,1.69476031,662.11,661.35,1.69363547]
[1752034838166,1.69476031,662.11,661.32,0.26301171]
[1752034838167,1.69476031,662.11,661.34,1.69363547]
[1752034838566,1.69476031,662.11,661.35,1.69363547]
[1752034839771,1.69476031,662.13,661.32,1.95664718]
[1752034840168,1.69476031,662.13,661.32,0.26301171]
[1752034841271,1.69476031,662.14,661.32,0.26301171]
[1752034843178,1.69476031,662.16,661.32,0.26301171]
[1752034846783,1.69476031,662.17,661.32,0.26301171]
[1752034848084,1.69476031,662.17,661.33,1.31]
[1752034848280,1.69476031,662.16,661.33,1.31]
[1752034848984,1.69476031,662.17,661.33,1.31]
[1752034849585,1.69476031,662.16,661.33,1.31]
[1752034852384,1.69476031,662.15,661.33,1.31]
[1752034852985,1.69476031,662.14,661.33,1.31]
[1752034853585,1.69476031,662.13,661.33,1.31]
[1752034854282,1.69476031,662.13,661.33,3.00363547]
[1752034854680,1.69476031,662.12,661.33,3.00363547]
[1752034855384,1.69476031,662.12,661.34,1.69363547]
[1752034856686,1.69476031,662.12,661.33,1.31]
[1752034856687,1.69476031,662.09,661.37,1.69363547]
[1752034857288,1.69476031,662.09,661.38,1.69363547]
[1752034858390,1.69476031,662.08,661.38,1.69363547]
[1752034859192,1.73310844,662.19,661.33,1.31]
[1752034859393,2.26439432,662.2,661.33,1.31]
[1752034859394,1.69116184,662.07,661.39,1.68861305]
[1752034860294,1.69116184,662.08,661.39,1.68861305]
[1752034860892,1.69116184,662.07,661.4,1.68861305]
[1752034861091,1.69116184,662.07,661.39,1.68861305]
[1752034861492,1.73319295,662.18,661.33,1.31]
[1752034861493,1.69116184,662.06,661.4,1.68861305]
[1752034863200,1.69116184,662.05,661.41,1.68861305]
[1752034863401,1.69116184,662.06,661.4,1.68861305]
[1752034863602,1.69116184,662.05,661.4,1.68861305]
[1752034864502,1.69116184,662.05,661.41,1.68861305]
[1752034864701,1.69116184,662.05,661.4,1.68861305]
[1752034865299,1.69116184,662.04,661.41,3.29261305]
[1752034866099,1.69116184,662.06,661.41,1.604]
[1752034866303,1.69116184,662.05,661.41,1.604]
[1752034867102,1.69116184,662.04,661.41,1.604]
[1752034867699,1.69116184,662.05,661.41,1.604]
[1752034868200,1.69116184,662.04,661.41,1.604]
[1752034869201,1.69116184,662.03,661.41,3.29261305]
[1752034870207,1.69116184,662.02,661.42,1.68861305]
[1752034871206,1.69116184,662.02,661.41,3.29261305]
[1752034873310,1.69116184,662.02,661.42,1.68861305]
[1752034873609,1.69116184,662.02,661.41,1.604]
[1752034873610,1.69116184,662.02,661.41,3.29261305]
[1752034875210,1.69116184,662.01,661.42,1.68861305]
[1752034875913,1.69116184,662.04,661.41,1.604]
[1752034876114,1.69116184,662.05,661.41,1.604]
[1752034876612,1.69116184,662.06,661.41,1.604]
[1752034876814,1.69116184,662.04,661.41,1.604]
[1752034877011,1.69116184,662.03,661.41,1.604]
[1752034877515,1.69116184,662.02,661.41,1.604]
[1752034879318,1.69116184,662.02,661.41,3.29261305]
[1752034880014,1.69116184,662.02,661.41,1.604]
[1752034880316,1.69116184,662.01,661.41,3.29261305]
[1752034881713,1.69116184,662.0,661.43,1.68861305]
[1752034882321,1.69116184,661.99,661.43,1.68861305]
[1752034883121,1.69116184,661.99,661.44,1.68861305]
[1752034884323,1.74032518,662.13,661.41,1.604]
[1752034884324,1.69116184,661.98,661.45,1.68861305]
[1752034886122,1.74032518,662.12,661.46,1.68861305]
[1752034886123,1.69116184,661.97,661.46,1.68861305]
[1752034887317,1.74032518,662.11,661.47,1.68861305]
[1752034887318,1.69116184,661.96,661.47,1.68861305]
[1752034888021,1.69116184,661.98,661.44,1.68861305]
[1752034888220,1.69116184,661.96,661.46,1.68861305]
[1752034888718,1.69116184,661.96,661.32,0.26301171]
[1752034888719,1.69116184,661.96,661.47,1.35]
[1752034889922,1.69116184,661.95,661.47,1.35]
[1752034890123,1.69116184,661.95,661.47,3.03861305]
[1752034890925,1.69116184,661.97,661.47,1.35]
[1752034891322,1.69116184,661.98,661.47,1.35]
[1752034898035,1.69116184,661.97,661.47,1.35]
[1752034898330,1.69116184,662.02,661.47,1.35]
[1752034898530,1.69116184,662.03,661.47,1.35]
[1752034899231,1.69116184,662.04,661.47,1.35]
[1752034901030,1.69116184,662.03,661.47,1.35]
[1752034905842,1.69116184,662.03,661.37,1.68861305]
[1752034908145,1.69116184,661.97,661.47,1.68861305]
[1752034908342,1.69116184,661.98,661.45,1.68861305]
[1752034909543,1.69116184,661.98,661.46,1.864]
[1752034911044,1.74298841,662.15,661.46,1.864]
[1752034911045,1.69116184,661.97,661.46,3.55261305]
[1752034911748,1.69116184,661.98,661.46,1.864]
[1752034913849,1.74290337,662.15,661.46,1.864]
[1752034914049,1.69948159,661.98,661.46,1.864]
[1752034915150,1.69948159,662.0,661.46,1.864]
[1752034916552,1.74294768,662.19,661.46,1.864]
[1752034916755,1.69946179,662.0,661.46,1.864]
[1752034917047,0.26293222,662.32,661.46,1.864]
[1752034917048,1.69946179,661.98,661.46,1.864]
[1752034918251,1.69946179,661.98,661.46,3.56088313]
[1752034920454,1.69946179,661.97,661.46,3.56088313]
[1752034921353,1.69946179,661.97,661.46,1.69688313]